fUSD/lending_fUSD_20260115
["ID","MTS","AMOUNT","RATE_DAILY","PERIOD"]
[402027378,1768487432364,-538.39856087,0.00018,2]
[402027379,1768487432461,-1309.68764366,0.00018,2]
[402027380,1768487432472,-448.54201431,0.00018,2]
[402027381,1768487432519,-827.08473548,0.00018,2]
[402027382,1768487432530,-787.27893922,0.00018,2]
[402027383,1768487432556,-2389.94928522,0.00018,2]
[402027384,1768487432567,-482.13,0.00018,2]
[402027385,1768487432784,-2371.45512925,0.00018,2]
[402027386,1768487432795,-3954.798,0.00018,2]
[402027387,1768487432806,-540.54142778,0.00018,2]
[402027388,1768487437718,-670.10000021,0.000174,2]
[402027389,1768487437730,-5972.68705834,0.000174,2]
[402027390,1768487437767,-475.0109,0.000174,2]
[402027391,1768487437779,-2344.66072333,0.000174,2]
[402027392,1768487437829,-602.8683354,0.000174,2]
[402027393,1768487437841,-392.59463394,0.000174,2]
[402027394,1768487437892,-22479.74943729,0.000174,2]
[402027395,1768487437903,-647.14351614,0.000174,2]
[402027396,1768487437914,-834.51068512,0.000174,2]
[402027397,1768487437925,-670.04988155,0.000174,2]
[402027398,1768487437959,-471.87366345,0.000174,2]
[402027399,1768487438077,-14258.999999,0.000174,2]
[402027573,1768487439784,-15326.61639768,0.000174,2]
[402027575,1768487439798,-3013.09883196,0.000174,2]
[402027579,1768487439821,-303.94,0.000174,2]
[402027582,1768487439894,-3816.26585088,0.000174,2]
[402027583,1768487439906,-454.51742485,0.000174,2]
[402027584,1768487439976,-22989.30025605,0.000174,2]
[402027585,1768487439988,-485.13,0.000174,2]
[402027586,1768487439999,-4532.30000001,0.000174,2]
[402027594,1768487440128,-360.11324534,0.000174,2]
[402027597,1768487440147,-3030.275,0.000174,2]
[402027600,1768487440159,-447.1571751,0.000174,2]
[402027602,1768487440171,-671.13398646,0.000174,2]
[402027607,1768487440211,-350313.3757979,0.000174,2]
[402027609,1768487440221,-4681830.20641214,0.00018,2]
[402027891,1768487442756,-66657.64910273,0.00018,2]
[402027893,1768487442767,-25186.3396482,0.00018,2]
[402027895,1768487442778,-6855.90067227,0.00018,2]
[402027897,1768487442792,-753.58500023,0.00018,2]
[402027902,1768487442826,-542732.429634,0.00018,2]
[402027904,1768487442837,-39684.89639591,0.00018,2]
[402027909,1768487442875,-399.13032916,0.00018,2]
[402027913,1768487442906,-326.45679968,0.00018,2]
[402027929,1768487443060,-132812.72139111,0.00018,2]
[402027931,1768487443069,-38569.15778384,0.00018,2]
[402027934,1768487443081,-908.811586,0.00018,2]
[402028190,1768487445631,-459.58986104,0.00017999,2]
[402028206,1768487445733,-40.41013896,0.00017999,2]
[402028209,1768487445743,-280.45982183,0.00017999,2]
[402028211,1768487445752,-2360.22436305,0.00018,2]
[402028218,1768487445815,-2169.16492796,0.00018,2]
[402028239,1768487445997,-655.3938732,0.00018,2]
[402028241,1768487446008,-22018.36395871,0.00018,2]
[402028243,1768487446019,-923.30565434,0.00018,2]
[402032303,1768488242082,900.0,0.0002,30]
[402032308,1768488341664,616.9,0.00026274,120]
[402032309,1768488406118,-151.0,0.00016646,2]
[402032310,1768488406143,-333.69947238,0.00016972,2]
[402032321,1768488631751,-1148.78266955,0.00014216,2]
[402032327,1768488631877,-634.70733045,0.00014216,2]
[402032328,1768488631888,-3192.17789557,0.000164,2]
[402032329,1768488631899,-151.0,0.00016611,2]
[402032330,1768488631910,-1200.0,0.00016972,2]
[402032331,1768488631919,-500.0,0.00016973,2]
[402032332,1768488631928,-500.0,0.00016973,2]
[402032333,1768488631939,-500.0,0.00016973,2]
[402032334,1768488631948,-500.0,0.00016973,2]
[402032335,1768488631957,-500.0,0.00016973,2]
[402032336,1768488631967,-2845.94718689,0.00016973,2]
[402032337,1768488631976,-591.92,0.00016973,2]
[402032338,1768488631985,-1779.847,0.000172,2]
[402032339,1768488631996,-591.92,0.00017247,2]
[402032340,1768488632005,-312.22245432,0.00017251,2]
[402032341,1768488632014,-151.0,0.00017297,2]
[402032342,1768488632024,-500.0,0.00017299,2]
[402032343,1768488632034,-292.42921136,0.00017299,2]
[402032344,1768488632043,-502.00518748,0.00017299,2]
[402032345,1768488632052,-500.0,0.00017299,2]
[402032346,1768488632061,-507.4251083,0.00017299,2]
[402032347,1768488632072,-1500.0,0.00017351,2]
[402032348,1768488632082,-1276.38,0.00017439,2]
[402032349,1768488632092,-500.0,0.00017499,2]
[402032350,1768488632102,-616.9,0.00017516,2]
[402032351,1768488632113,-1000.0,0.00017521,2]
[402032352,1768488632122,-777.02771789,0.00017521,2]
[402032353,1768488632132,-1000.0,0.00017521,2]
[402032354,1768488632141,-1000.0,0.00017521,2]
[402032355,1768488632150,-502.82019791,0.00017521,2]
[402032356,1768488632160,-591.92,0.00017521,2]
[402032357,1768488632171,-999.0,0.00017639,3]
[402032358,1768488632180,-591.92,0.00017795,2]
[402032359,1768488632189,-177.60265718,0.00017855,2]
[402032360,1768488632199,-467.43,0.00017878,2]
[402032361,1768488632209,-954.98,0.00017878,2]
[402032362,1768488632218,-155.92,0.00017923,2]
[402032363,1768488632228,-151.0,0.00017952,2]
[402032364,1768488632237,-500.0,0.00017954,2]
[402032365,1768488632247,-423.08508423,0.00017954,2]
[402032366,1768488632256,-100.97755816,0.00017955,2]
[402032367,1768488632268,-343.07098489,0.00017955,2]
[402032368,1768488636906,-18660.408992,0.00017955,2]
[402032369,1768488636917,-59419.3692203,0.00017955,2]
[402032374,1768488637894,-707.82344134,0.00017955,2]
[402032375,1768488637907,-2053.64958982,0.00017955,2]
[402032376,1768488637919,-335.00823583,0.00017955,2]
[402032377,1768488637930,-1513.88525483,0.00017955,2]
[402032378,1768488637959,-5300.19595435,0.00017955,2]
[402032379,1768488637970,-2631.49842016,0.00017955,2]
[402032380,1768488637981,-5694.9888,0.00017955,2]
[402032381,1768488637996,-1865.59042842,0.00017955,2]
[402032382,1768488638007,-20900.0,0.00017955,2]
[402032383,1768488638090,-659.93455117,0.00017955,2]
[402032384,1768488638127,-2517.52101935,0.00017955,2]
[402032385,1768488638139,-11625.82735196,0.00017955,2]
[402032387,1768488638150,-7042.71853933,0.00017955,2]
[402032389,1768488638162,-1278.64213922,0.00017955,2]
[402032392,1768488638173,-289.37908527,0.00017955,2]
[402032394,1768488638186,-8102.62870882,0.00017955,2]
[402032397,1768488638205,-2098.16310385,0.00017955,2]
[402032576,1768488639917,-1670.25,0.00017955,2]
[402032578,1768488639929,-9018.5429009,0.00017955,2]
[402032585,1768488639985,-4338.63706738,0.00017955,2]
[402032587,1768488639996,-590.9981233,0.00017955,2]
[402032590,1768488640008,-617.01579096,0.00017955,2]
[402032600,1768488640099,-40932.31453005,0.00017955,2]
[402032602,1768488640110,-712.96418076,0.00017955,2]
[402032614,1768488640222,-559.00357167,0.00017955,2]
[402032617,1768488640238,-284568.66929423,0.00017955,2]
[402032619,1768488640249,-258.6914863,0.00017955,2]
[402032624,1768488640289,-957.5,0.00017955,2]
[402032626,1768488640300,-4979.76509798,0.00017955,2]
[402032628,1768488640311,-525.16036174,0.00017955,2]
[402032639,1768488640403,-519.56113632,0.00017955,2]
[402032641,1768488640415,-1091.566251,0.00017955,2]
[402032643,1768488640425,-999.0,0.00017955,2]
[402032917,1768488643015,-151.0,0.00016795,2]
[402032919,1768488643025,-55876.13880454,0.00017955,2]
[402032921,1768488643034,-6931.3185745,0.00017955,2]
[402032923,1768488643043,-10724.5515377,0.00017955,2]
[402032925,1768488643052,-8468.4556923,0.00017955,2]
[402032927,1768488643061,-503.02534022,0.00017973,2]
[402032929,1768488643070,-500.0,0.00017973,2]
[402032931,1768488643081,-500.0,0.00017973,2]
[402032933,1768488643090,-500.0,0.00017973,2]
[402032935,1768488643099,-500.0,0.00017973,2]
[402032937,1768488643109,-500.0,0.00017973,2]
[402032939,1768488643118,-500.0,0.00017973,2]
[402032941,1768488643127,-500.0,0.00017973,2]
[402032943,1768488643136,-500.0,0.00017973,2]
[402032945,1768488643145,-500.0,0.00017973,2]
[402032947,1768488643154,-500.0,0.00017973,2]
[402032949,1768488643163,-500.0,0.00017973,2]
[402032951,1768488643173,-500.0,0.00017973,2]
[402032953,1768488643182,-500.0,0.00017973,2]
[402032955,1768488643192,-500.0,0.00017973,2]
[402032957,1768488643201,-500.0,0.00017973,2]
[402032959,1768488643210,-500.0,0.00017973,2]
[402032961,1768488643219,-501.29116863,0.00017973,2]
[402032964,1768488643228,-500.0,0.00017973,2]
[402032965,1768488643237,-500.0,0.00017973,2]
[402032967,1768488643246,-500.0,0.00017973,2]
[402032970,1768488643255,-500.0,0.00017973,2]
[402032972,1768488643266,-500.79318286,0.00017973,2]
[402032974,1768488643275,-500.0,0.00017973,2]
[402032976,1768488643285,-206.3117543,0.00017973,2]
[402032978,1768488643294,-500.0,0.00017973,2]
[402032980,1768488643303,-361.07,0.00017978,2]
[402032982,1768488643313,-467.43,0.00017978,2]
[402032984,1768488643323,-467.43,0.00017978,2]
[402032986,1768488643335,-220.21179118,0.00017982,2]
[402032988,1768488643344,-502.86382659,0.00017982,2]
[402032990,1768488643354,-151.0,0.00017997,2]
[402032992,1768488643364,-250.0,0.00017999,2]
[402032994,1768488643374,-500.0,0.00017999,2]
[402032996,1768488643383,-500.0,0.00017999,2]
[402032998,1768488643393,-500.0,0.00017999,2]
[402033000,1768488643402,-175.66351264,0.00017999,2]
[402033002,1768488643412,-392757.72188223,0.00018,2]
[402033004,1768488643421,-151.0,0.00018,2]
[402033006,1768488643431,-2000.0,0.00018,2]
[402033008,1768488643441,-200.0,0.00018,2]
[402033011,1768488643450,-152.44708916,0.00018,2]
[402033013,1768488643460,-591.95207547,0.00018068,2]
[402033015,1768488643469,-500.0,0.00018068,2]
[402033018,1768488643479,-1500.0,0.00018068,2]
[402033022,1768488643488,-500.0,0.00018068,2]
[402033024,1768488643498,-183.80704915,0.00018143,2]
[402033026,1768488643508,-467.43,0.00018178,2]
[402033028,1768488643517,-467.43,0.00018178,2]
[402033030,1768488643527,-200.0,0.0001818,2]
[402033032,1768488643536,-1338.4,0.00018187,2]
[402033033,1768488643545,-1470.0067332,0.00018243,2]
[402033035,1768488643554,-134842.1199083,0.00018243,2]
[402033037,1768488643563,-8468.4556925,0.00018243,2]
[402033039,1768488643573,-151.0,0.00018243,2]
[402033041,1768488643583,-151.0,0.00018243,2]
[402033043,1768488643593,-151.0,0.00018243,2]
[402033045,1768488643603,-2845.94718689,0.00018268,3]
[402033047,1768488643615,-1680.0,0.00018629,2]
[402033050,1768488643624,-1251.0,0.0001863,2]
[402033051,1768488643634,-200.0,0.0001878,2]
[402033053,1768488643644,-500.0,0.00018859,2]
[402033055,1768488643653,-500.0,0.00019141,2]
[402033057,1768488643662,-2845.94718689,0.00019563,8]
[402033060,1768488643672,-616.9,0.00019705,2]
[402033062,1768488643681,-312.22245427,0.00019934,2]
[402033064,1768488643691,-1546.5862235,0.00020229,2]
[402033066,1768488643700,-2392.9709021,0.00020286,2]
[402033068,1768488643709,-1889.5678748,0.00020286,2]
[402033070,1768488643719,-1338.4,0.00020429,2]
[402033072,1768488643729,-1944.0,0.00020449,2]
[402033074,1768488643738,-125255.6906929,0.00020534,2]
[402033076,1768488643747,-30087.3438099,0.00020553,2]
[402033078,1768488643756,-1889.5678748,0.00020553,2]
[402033080,1768488643765,-22305.18211949,0.0002057,2]
[402033082,1768488643774,-151.0,0.00020614,2]
[402033084,1768488643783,-345.0900317,0.00020736,2]
[402033086,1768488643792,-1547.2,0.00020756,2]
[402033088,1768488643801,-533.9439806,0.00020806,2]
[402033090,1768488643811,-421.6195825,0.00020806,2]
[402033092,1768488643820,-2845.94718689,0.00020857,12]
[402033094,1768488643831,-1000.0,0.00020893,2]
[402033096,1768488643839,-6713.3938427,0.00021069,2]
[402033098,1768488643848,-421.6195825,0.00021069,2]
[402033100,1768488643858,-27948.3223238,0.00021109,2]
[402033102,1768488643867,-17994.0,0.000217,2]
[402033104,1768488643877,-250.49144649,0.0002178,2]
[402033106,1768488643887,-616.9,0.00021895,2]
[402033108,1768488643896,-5000.0,0.00021918,2]
[402033110,1768488643905,-2845.94718689,0.00022152,17]
[402033112,1768488643914,-183.80704909,0.00022238,2]
[402033114,1768488643923,-5533.0,0.000224,3]
[402033116,1768488643932,-158.61718938,0.00022412,2]
[402033118,1768488643941,-312.22245427,0.00022617,2]
[402033120,1768488643951,-1338.4,0.00022671,2]
[402033122,1768488643960,-5533.0,0.000231,5]
[402033124,1768488643969,-156.09,0.00023356,30]
[402033126,1768488643979,-150.0,0.00023368,2]
[402033128,1768488643988,-2972.17,0.00023368,2]
[402033130,1768488643998,-150.99,0.00023368,2]
[402033132,1768488644007,-499.99,0.00023368,2]
[402033134,1768488644016,-8935.33,0.00023368,2]
[402033136,1768488644025,-462.63,0.00023368,2]
[402033138,1768488644035,-5889.44,0.00023368,2]
[402033140,1768488644044,-9382.95,0.00023368,2]
[402033142,1768488644053,-299.99,0.00023368,7]
[402033144,1768488644063,-9999.99,0.00023368,2]
[402033146,1768488644073,-30255.81,0.00023368,2]
[402033148,1768488644085,-20237.73,0.00023368,2]
[402033150,1768488644093,-9999.99,0.00023368,2]
[402033152,1768488644103,-9999.99,0.00023368,2]
[402033154,1768488644112,-999.99,0.00023368,2]
[402033156,1768488644121,-2845.94718689,0.00023447,21]
[402033158,1768488644131,-1000.0,0.00023505,2]
[402033160,1768488644140,-166.66,0.00023904,30]
[402033162,1768488644149,-1563.6205004,0.00024075,2]
[402033164,1768488644159,-616.9,0.00024084,2]
[402033166,1768488644168,-652.73,0.000244,3]
[402033168,1768488644178,-166.66,0.00024407,30]
[402033170,1768488644187,-161.0,0.000246,5]
[402033172,1768488644197,-2845.94718689,0.00024742,26]
[402033174,1768488644206,-4833.265,0.000248,2]
[402033176,1768488644215,-94351.1827514,0.000248,2]
[402033178,1768488644225,-151.0,0.000248,7]
[402033180,1768488644235,-862.10069565,0.0002481,2]
[402033182,1768488644244,-1406.0,0.00024818,2]
[402033184,1768488644253,-614.0,0.00024818,2]
[402033186,1768488644262,-2527.293,0.00024818,2]
[402033188,1768488644271,-1331.0,0.00024818,2]
[402033190,1768488644280,-1267.0,0.00024818,2]
[402033192,1768488644289,-440.402,0.00024818,2]
[402033194,1768488644298,-6558.0,0.00024818,2]
[402033197,1768488644308,-213.0,0.00024818,2]
[402033199,1768488644317,-265.0,0.00024818,2]
[402033201,1768488644329,-250.0,0.00024818,2]
[402033203,1768488644339,-226.84,0.00024818,2]
[402033205,1768488644348,-194.531,0.00024818,2]
[402033207,1768488644358,-2438.0,0.00024818,2]
[402033209,1768488644367,-157.526,0.00024818,2]
[402033211,1768488644377,-914.0,0.00024818,2]
[402033213,1768488644386,-250.0,0.00024818,2]
[402033215,1768488644396,-4419.76974317,0.00024831,30]
[402033217,1768488644406,-500.0,0.00024899,2]
[402033219,1768488644415,-238.66336766,0.00024899,2]
[402033221,1768488644425,-350.56402032,0.00024899,2]
[402033223,1768488644435,-165.84811274,0.00024899,2]
[402033225,1768488644444,-500.0,0.00024899,2]
[402033227,1768488644454,-297.80970136,0.00024899,2]
[402033229,1768488644463,-229679.041611,0.000249,2]
[402033231,1768488644472,-166.66,0.0002491,30]
[402033233,1768488644481,-1338.4,0.00024913,2]
[402033235,1768488644490,-1262.0,0.00024931,2]
[402033237,1768488644499,-152.0,0.00024931,2]
[402033239,1768488644509,-152.0,0.00024931,2]
[402033241,1768488644519,-152.0,0.00024931,2]
[402033243,1768488644529,-152.0,0.00024931,2]
[402033245,1768488644540,-282.31610766,0.00024931,2]
[402033246,1768488644550,-360.0,0.00024961,7]
[402033247,1768488644559,-6800.00688837,0.00025,2]
[402033248,1768488644569,-1455.0,0.00025012,7]
[402033249,1768488644580,-360.0,0.00025033,2]
[402033250,1768488644589,-360.0,0.00025068,2]
[402033251,1768488644602,-17280.3298891,0.0002507,2]
[402033252,1768488644612,-9710.79759746,0.0002507,2]
[402033253,1768488644625,-2933.01385415,0.0002507,2]
[402033254,1768488644635,-358.0,0.00025161,2]
[402033255,1768488644646,-312.22245427,0.00025301,2]
[402033257,1768488644655,-168.0,0.00025351,2]
[402033258,1768488644664,-360.0,0.00025356,2]
[402033260,1768488644675,-8452.08351439,0.0002537,2]
[402033262,1768488644686,-4743.189,0.0002537,2]
[402033264,1768488644696,-166.66,0.00025414,30]
[402033266,1768488644706,-358.0,0.00025495,2]
[402033268,1768488644716,-188.38,0.000255,30]
[402033270,1768488644725,-358.0,0.00025565,2]
[402033272,1768488644734,-453.0,0.000256,2]
[402033274,1768488644744,-200.0,0.00025614,2]
[402033276,1768488644754,-358.0,0.00025641,2]
[402033278,1768488644763,-358.0,0.00025695,2]
[402033280,1768488644772,-1455.0,0.0002572,2]
[402033283,1768488644782,-360.0,0.00025846,2]
[402033284,1768488644791,-189.0,0.00025863,2]
[402033287,1768488644800,-168.0,0.00025873,2]
[402033288,1768488644810,-166.66,0.00025917,30]
[402033290,1768488644819,-358.0,0.00025962,2]
[402033292,1768488644830,-1783.49,0.00025997,2]
[402033294,1768488644840,-358.0,0.00026005,2]
[402033296,1768488644849,-1305.40593724,0.00026036,31]
[402033298,1768488644858,-1000.0,0.00026116,2]
[402033300,1768488644867,-358.0,0.00026194,2]
[402033302,1768488644876,-183.80704909,0.00026334,2]
[402033304,1768488644885,-168.0,0.00026349,2]
[402033306,1768488644895,-166.66,0.0002642,30]
[402033308,1768488644904,-358.0,0.00026444,2]
[402033310,1768488644913,-358.0,0.00026532,2]
[402033312,1768488644922,-358.0,0.00026653,2]
[402033314,1768488644931,-2637.53,0.000267,4]
[402033316,1768488644941,-358.0,0.00026721,2]
[402033318,1768488644950,-168.0,0.00026846,2]
[402033320,1768488644959,-168.0,0.00026933,2]
[402033322,1768488644968,-506.0,0.00027137,2]
[402033324,1768488644977,-1338.4,0.00027155,2]
[402033326,1768488644987,-174.61919141,0.00027309,2]
[402033328,1768488644996,-574.12855637,0.00027309,2]
[402033330,1768488645005,-642.94,0.00027309,2]
[402033332,1768488645014,-3000.0,0.00027309,2]
[402033334,1768488645023,-1305.40593724,0.00027331,35]
[402033336,1768488645032,-150.0,0.00027369,2]
[402033338,1768488645042,-500.0,0.00027397,20]
[402033340,1768488645052,-300.0,0.00027397,2]
[402033342,1768488645062,-1115.668,0.00027818,2]
[402033344,1768488645071,-288.858,0.00027818,2]
[402033346,1768488645083,-412.0,0.00027818,2]
[402033348,1768488645094,-6558.0,0.00027818,2]
[402033350,1768488645103,-2438.0,0.00027818,2]
[402033352,1768488645112,-181.08010149,0.00027857,2]
[402033354,1768488645122,-595.37131296,0.00027857,2]
[402033356,1768488645131,-200.0,0.00027909,2]
[402033358,1768488645140,-156.225779,0.0002791,7]
[402033360,1768488645150,-156.225779,0.0002791,7]
[402033362,1768488645159,-156.225779,0.0002791,7]
[402033364,1768488645168,-156.225779,0.0002791,7]
[402033367,1768488645184,-151.0,0.0002791,7]
[402033369,1768488645193,-151.0,0.0002791,7]
[402033371,1768488645203,-151.0,0.0002791,7]
[402033373,1768488645213,-151.0,0.0002791,7]
[402033375,1768488645223,-312.22245427,0.00027984,2]
[402033377,1768488645232,-14722.0,0.00028,5]
[402033379,1768488645241,-151.0,0.00028,7]
[402033381,1768488645251,-151.0,0.00028,7]
[402033383,1768488645260,-151.0,0.00028,7]
[402033385,1768488645270,-475.171332,0.00028,7]
[402033387,1768488645279,-475.171332,0.00028,7]
[402033389,1768488645288,-475.171332,0.00028,7]
[402033391,1768488645298,-475.171332,0.00028,7]
[402033393,1768488645307,-862.10069561,0.00028328,2]
[402033395,1768488645316,-659.38,0.000284,6]
[402033397,1768488645329,-4419.76974317,0.00028401,30]
[402033399,1768488645338,-156.09,0.00028403,30]
[402033401,1768488645348,-187.78006525,0.00028405,2]
[402033403,1768488645358,-617.40005154,0.00028405,2]
[402033405,1768488645367,-1305.40593724,0.00028626,39]
[402033407,1768488645376,-1000.0,0.00028728,2]
[402033409,1768488645386,-1000.0,0.00028931,2]
[402033411,1768488645396,-194.72792766,0.00028953,2]
[402033413,1768488645406,-640.24385345,0.00028953,2]
[402033415,1768488645416,-156.87,0.00029,2]
[402033417,1768488645426,-1547.2,0.00029058,2]
[402033419,1768488645436,-151.0,0.0002923,3]
[402033421,1768488645445,-151.0,0.0002923,3]
[402033423,1768488645456,-158.53,0.00029261,2]
[402033425,1768488645467,-606.78,0.0002938,2]
[402033427,1768488645477,-1338.4,0.00029397,2]
[402033429,1768488645487,-172.74236898,0.00029501,2]
[402033431,1768488645496,-663.93287602,0.00029501,2]
[402033433,1768488645506,-506.0,0.0002954,4]
[402033435,1768488645516,-1305.40593724,0.00029921,43]
[402033437,1768488645526,-235.48,0.0003,2]
[402033439,1768488645538,-188.34,0.0003002,2]
[402033441,1768488645553,-688.49839244,0.00030049,2]
[402033443,1768488645563,-151.0,0.00030136,2]
[402033445,1768488645574,-183.80704909,0.00030429,2]
[402033447,1768488645591,-713.97283296,0.00030597,2]
[402033448,1768488645602,-312.22245427,0.00030667,2]
[402033449,1768488645617,-150.0,0.00030681,2]
[402033450,1768488645627,-156.87,0.000307,2]
[402033452,1768488645637,-412.0,0.00030818,2]
[402033453,1768488645647,-6558.0,0.00030818,2]
[402033455,1768488645658,-606.78,0.00030849,2]
[402033456,1768488645668,-252.91681821,0.00031145,2]
[402033457,1768488645679,-1000.0,0.0003134,2]
[402033458,1768488645689,-518.101,0.00031606,29]
[402033459,1768488645699,-1338.4,0.00031638,2]
[402033460,1768488645709,-862.10069561,0.00031846,2]
[402033461,1768488645718,-506.0,0.00031943,7]
[402033462,1768488645728,-4419.76974317,0.00031971,30]
[402033463,1768488645737,-606.78,0.00032318,2]
[402033464,1768488645748,-1305.40593724,0.0003251,52]
[402033465,1768488645759,-166.66,0.00032753,2]
[402033466,1768488645768,-156.87,0.000328,2]
[402033467,1768488645778,-174.61919141,0.00032877,2]
[402033469,1768488645787,-171.71,0.000329,2]
[402033470,1768488645797,-158.53,0.00032918,2]
[402033471,1768488645807,-153.76,0.00033,14]
[402033472,1768488645817,-200.0,0.00033326,10]
[402033473,1768488645826,-312.22245427,0.0003335,2]
[402033474,1768488645838,-156.09,0.0003345,30]
[402033475,1768488645847,-158.61718938,0.00033618,2]
[402033476,1768488645857,-606.78,0.00033787,2]
[402033477,1768488645867,-1305.40593724,0.00033805,56]
[402033478,1768488645877,-6558.0,0.00033818,2]
[402033479,1768488645886,-166.66,0.00033834,2]
[402033480,1768488645896,-1338.4,0.0003388,5]
[402033481,1768488645906,-506.0,0.00034346,9]
[402033482,1768488645915,-183.80704909,0.00034524,2]
[402033483,1768488645926,-166.66,0.00034916,2]
[402033484,1768488645941,-188.34,0.00034973,2]
[402033485,1768488645951,-153.76,0.00035,14]
[402033486,1768488645961,-31730.20341904,0.00035,4]
[402033487,1768488645971,-5800.0,0.00035093,2]
[402033488,1768488645981,-1305.40593724,0.000351,60]
[402033489,1768488645991,-5800.0,0.00035102,2]
[402033490,1768488646000,-5800.0,0.00035103,2]
[402033491,1768488646010,-5800.0,0.00035112,2]
[402033492,1768488646021,-606.78,0.00035256,2]
[402033493,1768488646030,-862.10069561,0.00035364,2]
[402033494,1768488646040,-4885.72033316,0.00035397,2]
[402033495,1768488646050,-4419.76974317,0.00035541,30]
[402033496,1768488646060,-151.0,0.00035541,30]
[402033497,1768488646070,-1000.0,0.000359,7]
[402033498,1768488646082,-166.66,0.00035997,2]
[402033499,1768488646091,-600.0,0.00036,120]
[402033500,1768488646100,-600.0,0.00036,120]
[402033501,1768488646110,-312.22245427,0.00036034,2]
[402033502,1768488646121,-1338.4,0.00036122,7]
[402033503,1768488646130,-920.27062482,0.00036394,64]
[402033504,1768488646141,-158.53,0.00036576,2]
[402033505,1768488646150,-41885.0,0.00036596,30]
[402033506,1768488646160,-506.0,0.00036748,12]
[402033507,1768488646171,-6095.585,0.00036818,2]
[402033508,1768488646181,-166.66,0.00037078,2]
[402033509,1768488646190,-791.0,0.000375,120]
[402033510,1768488646200,-920.27062482,0.00037689,69]
[402033511,1768488646209,-1783.49,0.00037778,2]
[402033512,1768488646219,-2000.0,0.00038,32]
[402033513,1768488646229,-600.0,0.00038,120]
[402033514,1768488646238,-600.0,0.00038,120]
[402033515,1768488646249,-600.0,0.00038,120]
[402033516,1768488646259,-166.66,0.00038159,2]
[402033517,1768488646268,-151.0,0.00038356,120]
[402033518,1768488646278,-156.392704,0.00038356,120]
[402033519,1768488646288,-151.0,0.00038356,120]
[402033520,1768488646301,-151.0,0.00038356,120]
[402033521,1768488646310,-151.0,0.00038356,120]
[402033522,1768488646320,-151.0,0.00038356,120]
[402033523,1768488646329,-151.0,0.00038356,120]
[402033524,1768488646339,-151.0,0.00038356,120]
[402033525,1768488646349,-151.0,0.00038356,120]
[402033526,1768488646359,-151.0,0.00038356,120]
[402033527,1768488646368,-151.0,0.00038356,120]
[402033528,1768488646379,-151.0,0.00038356,120]
[402033529,1768488646388,-151.0,0.00038356,120]
[402033530,1768488646397,-222.770164,0.00038356,120]
[402033531,1768488646407,-222.770164,0.00038356,120]
[402033532,1768488646417,-222.770164,0.00038356,120]
[402033533,1768488646426,-222.770164,0.00038356,120]
[402033534,1768488646436,-159.084081,0.00038356,120]
[402033535,1768488646446,-151.0,0.00038356,120]
[402033536,1768488646455,-151.0,0.00038356,120]
[402033537,1768488646465,-151.0,0.00038356,120]
[402033538,1768488646475,-151.0,0.00038356,120]
[402033539,1768488646484,-151.0,0.00038356,120]
[402033540,1768488646854,-179.820294,0.00038356,120]
[402033541,1768488646864,-151.0,0.00038356,120]
[402033542,1768488646873,-151.0,0.00038356,120]
[402033544,1768488646882,-273.746424,0.00038356,120]
[402033546,1768488646892,-273.746424,0.00038356,120]
[402033547,1768488646901,-273.746424,0.00038356,120]
[402033549,1768488646910,-151.0,0.00038356,120]